Department Family,Entity,Date,Expense Type,Expense Area,Supplier,Transaction Number,AP Amount
Department of Health,NHS Rotherham CCG,31/10/2021,Hcare Srv Rec Fdtn Trust-Contract Baseline,ACUTE COMMISSIONING,BARNSLEY HOSPITAL NHS FOUNDATION TRUST,38451925,"199,499.20"
Department of Health,NHS Rotherham CCG,31/10/2021,Clinical&Medical-Commercial Sector,ACUTE COMMISSIONING,BMI HEALTHCARE LTD,38408156,"31,410.85"
Department of Health,NHS Rotherham CCG,31/10/2021,Clinical&Medical-Commercial Sector,ACUTE COMMISSIONING,CLAREMONT HOSPITAL,38445159,"85,430.00"
Department of Health,NHS Rotherham CCG,31/10/2021,Clinical&Medical-Commercial Sector,ACUTE COMMISSIONING,CLAREMONT HOSPITAL,38630894,"-46,087.55"
Department of Health,NHS Rotherham CCG,31/10/2021,Clinical&Medical-Commercial Sector,ACUTE COMMISSIONING,CLAREMONT HOSPITAL,38649374,"76,810.00"
Department of Health,NHS Rotherham CCG,31/10/2021,C&M- PCN DES CARE COORDINATOR,PRC DELEGATED CO-COMMISSIONING,CONNECT HEALTHCARE ROTHERHAM LTD,38300321,"1,322.81"
Department of Health,NHS Rotherham CCG,31/10/2021,C&M-APMS PCN DES Clin Pharmacist,PRC DELEGATED CO-COMMISSIONING,CONNECT HEALTHCARE ROTHERHAM LTD,38300321,"22,418.03"
Department of Health,NHS Rotherham CCG,31/10/2021,C&M-APMS PCN DES Physiotherapist,PRC DELEGATED CO-COMMISSIONING,CONNECT HEALTHCARE ROTHERHAM LTD,38300321,"4,690.87"
Department of Health,NHS Rotherham CCG,31/10/2021,C&M-APMS PCN DES Soc Prescribing,PRC DELEGATED CO-COMMISSIONING,CONNECT HEALTHCARE ROTHERHAM LTD,38300321,"2,704.08"
Department of Health,NHS Rotherham CCG,31/10/2021,C&M-PCN DES DIETICIANS,PRC DELEGATED CO-COMMISSIONING,CONNECT HEALTHCARE ROTHERHAM LTD,38300321,"1,240.00"
Department of Health,NHS Rotherham CCG,31/10/2021,C&M-PCN DES PHARMACY TECHNICIANS,PRC DELEGATED CO-COMMISSIONING,CONNECT HEALTHCARE ROTHERHAM LTD,38300321,"2,407.60"
Department of Health,NHS Rotherham CCG,31/10/2021,C&M-PCN DES Paramedic Advanced Practitioner,PRC DELEGATED CO-COMMISSIONING,CONNECT HEALTHCARE ROTHERHAM LTD,38300321,"4,570.08"
Department of Health,NHS Rotherham CCG,31/10/2021,C&M- PCN DES CARE COORDINATOR,PRC DELEGATED CO-COMMISSIONING,CONNECT HEALTHCARE ROTHERHAM LTD,38300330,"1,322.81"
Department of Health,NHS Rotherham CCG,31/10/2021,C&M-APMS PCN DES Clin Pharmacist,PRC DELEGATED CO-COMMISSIONING,CONNECT HEALTHCARE ROTHERHAM LTD,38300330,"21,916.30"
Department of Health,NHS Rotherham CCG,31/10/2021,C&M-APMS PCN DES Physiotherapist,PRC DELEGATED CO-COMMISSIONING,CONNECT HEALTHCARE ROTHERHAM LTD,38300330,"5,951.38"
Department of Health,NHS Rotherham CCG,31/10/2021,C&M-APMS PCN DES Soc Prescribing,PRC DELEGATED CO-COMMISSIONING,CONNECT HEALTHCARE ROTHERHAM LTD,38300330,"2,704.08"
Department of Health,NHS Rotherham CCG,31/10/2021,C&M-PCN DES PHARMACY TECHNICIANS,PRC DELEGATED CO-COMMISSIONING,CONNECT HEALTHCARE ROTHERHAM LTD,38300330,"3,160.69"
Department of Health,NHS Rotherham CCG,31/10/2021,C&M-PCN DES Paramedic Advanced Practitioner,PRC DELEGATED CO-COMMISSIONING,CONNECT HEALTHCARE ROTHERHAM LTD,38300330,"4,570.08"
Department of Health,NHS Rotherham CCG,31/10/2021,C&M- PCN DES CARE COORDINATOR,PRC DELEGATED CO-COMMISSIONING,CONNECT HEALTHCARE ROTHERHAM LTD,38300338,"1,322.81"
Department of Health,NHS Rotherham CCG,31/10/2021,C&M-APMS PCN DES Clin Pharmacist,PRC DELEGATED CO-COMMISSIONING,CONNECT HEALTHCARE ROTHERHAM LTD,38300338,"12,443.64"
Department of Health,NHS Rotherham CCG,31/10/2021,C&M-APMS PCN DES Physiotherapist,PRC DELEGATED CO-COMMISSIONING,CONNECT HEALTHCARE ROTHERHAM LTD,38300338,"4,221.78"
Department of Health,NHS Rotherham CCG,31/10/2021,C&M-APMS PCN DES Soc Prescribing,PRC DELEGATED CO-COMMISSIONING,CONNECT HEALTHCARE ROTHERHAM LTD,38300338,"2,704.08"
Department of Health,NHS Rotherham CCG,31/10/2021,C&M-PCN DES PHARMACY TECHNICIANS,PRC DELEGATED CO-COMMISSIONING,CONNECT HEALTHCARE ROTHERHAM LTD,38300338,"5,117.54"
Department of Health,NHS Rotherham CCG,31/10/2021,C&M-PCN DES Paramedic Advanced Practitioner,PRC DELEGATED CO-COMMISSIONING,CONNECT HEALTHCARE ROTHERHAM LTD,38300338,"4,570.08"
Department of Health,NHS Rotherham CCG,31/10/2021,C&M- PCN DES CARE COORDINATOR,PRC DELEGATED CO-COMMISSIONING,CONNECT HEALTHCARE ROTHERHAM LTD,38445045,"1,322.81"
Department of Health,NHS Rotherham CCG,31/10/2021,C&M-APMS PCN DES Clin Pharmacist,PRC DELEGATED CO-COMMISSIONING,CONNECT HEALTHCARE ROTHERHAM LTD,38445045,"26,262.40"
Department of Health,NHS Rotherham CCG,31/10/2021,C&M-APMS PCN DES Physiotherapist,PRC DELEGATED CO-COMMISSIONING,CONNECT HEALTHCARE ROTHERHAM LTD,38445045,"4,735.75"
Department of Health,NHS Rotherham CCG,31/10/2021,C&M-APMS PCN DES Soc Prescribing,PRC DELEGATED CO-COMMISSIONING,CONNECT HEALTHCARE ROTHERHAM LTD,38445045,"3,305.98"
Department of Health,NHS Rotherham CCG,31/10/2021,C&M-PCN DES PHARMACY TECHNICIANS,PRC DELEGATED CO-COMMISSIONING,CONNECT HEALTHCARE ROTHERHAM LTD,38445045,"5,064.47"
Department of Health,NHS Rotherham CCG,31/10/2021,C&M-PCN DES Paramedic Advanced Practitioner,PRC DELEGATED CO-COMMISSIONING,CONNECT HEALTHCARE ROTHERHAM LTD,38445045,"4,570.08"
Department of Health,NHS Rotherham CCG,31/10/2021,C&M- PCN DES CARE COORDINATOR,PRC DELEGATED CO-COMMISSIONING,CONNECT HEALTHCARE ROTHERHAM LTD,38445119,"1,322.81"
Department of Health,NHS Rotherham CCG,31/10/2021,C&M-APMS PCN DES Clin Pharmacist,PRC DELEGATED CO-COMMISSIONING,CONNECT HEALTHCARE ROTHERHAM LTD,38445119,"18,438.18"
Department of Health,NHS Rotherham CCG,31/10/2021,C&M-APMS PCN DES Physiotherapist,PRC DELEGATED CO-COMMISSIONING,CONNECT HEALTHCARE ROTHERHAM LTD,38445119,"6,385.62"
Department of Health,NHS Rotherham CCG,31/10/2021,C&M-APMS PCN DES Soc Prescribing,PRC DELEGATED CO-COMMISSIONING,CONNECT HEALTHCARE ROTHERHAM LTD,38445119,"5,111.68"
Department of Health,NHS Rotherham CCG,31/10/2021,C&M-PCN DES PHARMACY TECHNICIANS,PRC DELEGATED CO-COMMISSIONING,CONNECT HEALTHCARE ROTHERHAM LTD,38445119,"5,117.54"
Department of Health,NHS Rotherham CCG,31/10/2021,C&M-PCN DES Paramedic Advanced Practitioner,PRC DELEGATED CO-COMMISSIONING,CONNECT HEALTHCARE ROTHERHAM LTD,38445119,"4,570.08"
Department of Health,NHS Rotherham CCG,31/10/2021,C&M- PCN DES CARE COORDINATOR,PRC DELEGATED CO-COMMISSIONING,CONNECT HEALTHCARE ROTHERHAM LTD,38445362,"1,241.07"
Department of Health,NHS Rotherham CCG,31/10/2021,C&M-APMS PCN DES Clin Pharmacist,PRC DELEGATED CO-COMMISSIONING,CONNECT HEALTHCARE ROTHERHAM LTD,38445362,"22,879.11"
Department of Health,NHS Rotherham CCG,31/10/2021,C&M-APMS PCN DES Physiotherapist,PRC DELEGATED CO-COMMISSIONING,CONNECT HEALTHCARE ROTHERHAM LTD,38445362,"4,690.87"
Department of Health,NHS Rotherham CCG,31/10/2021,C&M-APMS PCN DES Soc Prescribing,PRC DELEGATED CO-COMMISSIONING,CONNECT HEALTHCARE ROTHERHAM LTD,38445362,"1,941.61"
Department of Health,NHS Rotherham CCG,31/10/2021,C&M-PCN DES DIETICIANS,PRC DELEGATED CO-COMMISSIONING,CONNECT HEALTHCARE ROTHERHAM LTD,38445362,"1,200.00"
Department of Health,NHS Rotherham CCG,31/10/2021,C&M-PCN DES PHARMACY TECHNICIANS,PRC DELEGATED CO-COMMISSIONING,CONNECT HEALTHCARE ROTHERHAM LTD,38445362,"2,407.60"
Department of Health,NHS Rotherham CCG,31/10/2021,C&M-PCN DES Paramedic Advanced Practitioner,PRC DELEGATED CO-COMMISSIONING,CONNECT HEALTHCARE ROTHERHAM LTD,38445362,"4,570.08"
Department of Health,NHS Rotherham CCG,31/10/2021,C&M- PCN DES CARE COORDINATOR,PRC DELEGATED CO-COMMISSIONING,CONNECT HEALTHCARE ROTHERHAM LTD,38445378,"1,241.07"
Department of Health,NHS Rotherham CCG,31/10/2021,C&M-APMS PCN DES Clin Pharmacist,PRC DELEGATED CO-COMMISSIONING,CONNECT HEALTHCARE ROTHERHAM LTD,38445378,"18,812.07"
Department of Health,NHS Rotherham CCG,31/10/2021,C&M-APMS PCN DES Physiotherapist,PRC DELEGATED CO-COMMISSIONING,CONNECT HEALTHCARE ROTHERHAM LTD,38445378,"6,630.05"
Department of Health,NHS Rotherham CCG,31/10/2021,C&M-APMS PCN DES Soc Prescribing,PRC DELEGATED CO-COMMISSIONING,CONNECT HEALTHCARE ROTHERHAM LTD,38445378,"5,111.68"
Department of Health,NHS Rotherham CCG,31/10/2021,C&M-PCN DES PHARMACY TECHNICIANS,PRC DELEGATED CO-COMMISSIONING,CONNECT HEALTHCARE ROTHERHAM LTD,38445378,"5,277.72"
Department of Health,NHS Rotherham CCG,31/10/2021,C&M-PCN DES Paramedic Advanced Practitioner,PRC DELEGATED CO-COMMISSIONING,CONNECT HEALTHCARE ROTHERHAM LTD,38445378,"4,570.08"
Department of Health,NHS Rotherham CCG,31/10/2021,C&M- PCN DES CARE COORDINATOR,PRC DELEGATED CO-COMMISSIONING,CONNECT HEALTHCARE ROTHERHAM LTD,38445383,"1,241.07"
Department of Health,NHS Rotherham CCG,31/10/2021,C&M- PCN DES Nursing Associate,PRC DELEGATED CO-COMMISSIONING,CONNECT HEALTHCARE ROTHERHAM LTD,38445383,75.76
Department of Health,NHS Rotherham CCG,31/10/2021,C&M-APMS PCN DES Clin Pharmacist,PRC DELEGATED CO-COMMISSIONING,CONNECT HEALTHCARE ROTHERHAM LTD,38445383,"22,247.35"
Department of Health,NHS Rotherham CCG,31/10/2021,C&M-APMS PCN DES Physiotherapist,PRC DELEGATED CO-COMMISSIONING,CONNECT HEALTHCARE ROTHERHAM LTD,38445383,"4,735.75"
Department of Health,NHS Rotherham CCG,31/10/2021,C&M-APMS PCN DES Soc Prescribing,PRC DELEGATED CO-COMMISSIONING,CONNECT HEALTHCARE ROTHERHAM LTD,38445383,"3,305.98"
Department of Health,NHS Rotherham CCG,31/10/2021,C&M-PCN DES PHARMACY TECHNICIANS,PRC DELEGATED CO-COMMISSIONING,CONNECT HEALTHCARE ROTHERHAM LTD,38445383,"5,272.97"
Department of Health,NHS Rotherham CCG,31/10/2021,C&M-PCN DES Paramedic Advanced Practitioner,PRC DELEGATED CO-COMMISSIONING,CONNECT HEALTHCARE ROTHERHAM LTD,38445383,"4,570.08"
Department of Health,NHS Rotherham CCG,31/10/2021,C&M- PCN DES CARE COORDINATOR,PRC DELEGATED CO-COMMISSIONING,CONNECT HEALTHCARE ROTHERHAM LTD,38445389,"1,241.07"
Department of Health,NHS Rotherham CCG,31/10/2021,C&M-APMS PCN DES Clin Pharmacist,PRC DELEGATED CO-COMMISSIONING,CONNECT HEALTHCARE ROTHERHAM LTD,38445389,"11,992.31"
Department of Health,NHS Rotherham CCG,31/10/2021,C&M-APMS PCN DES Physiotherapist,PRC DELEGATED CO-COMMISSIONING,CONNECT HEALTHCARE ROTHERHAM LTD,38445389,"4,221.78"
Department of Health,NHS Rotherham CCG,31/10/2021,C&M-APMS PCN DES Soc Prescribing,PRC DELEGATED CO-COMMISSIONING,CONNECT HEALTHCARE ROTHERHAM LTD,38445389,"2,704.08"
Department of Health,NHS Rotherham CCG,31/10/2021,C&M-PCN DES PHARMACY TECHNICIANS,PRC DELEGATED CO-COMMISSIONING,CONNECT HEALTHCARE ROTHERHAM LTD,38445389,"5,353.72"
Department of Health,NHS Rotherham CCG,31/10/2021,C&M-PCN DES Paramedic Advanced Practitioner,PRC DELEGATED CO-COMMISSIONING,CONNECT HEALTHCARE ROTHERHAM LTD,38445389,"4,570.88"
Department of Health,NHS Rotherham CCG,31/10/2021,C&M- PCN DES CARE COORDINATOR,PRC DELEGATED CO-COMMISSIONING,CONNECT HEALTHCARE ROTHERHAM LTD,38445395,"1,241.07"
Department of Health,NHS Rotherham CCG,31/10/2021,C&M- PCN DES Nursing Associate,PRC DELEGATED CO-COMMISSIONING,CONNECT HEALTHCARE ROTHERHAM LTD,38445395,"1,780.28"
Department of Health,NHS Rotherham CCG,31/10/2021,C&M-APMS PCN DES Clin Pharmacist,PRC DELEGATED CO-COMMISSIONING,CONNECT HEALTHCARE ROTHERHAM LTD,38445395,"20,304.43"
Department of Health,NHS Rotherham CCG,31/10/2021,C&M-APMS PCN DES Physiotherapist,PRC DELEGATED CO-COMMISSIONING,CONNECT HEALTHCARE ROTHERHAM LTD,38445395,"6,591.98"
Department of Health,NHS Rotherham CCG,31/10/2021,C&M-APMS PCN DES Soc Prescribing,PRC DELEGATED CO-COMMISSIONING,CONNECT HEALTHCARE ROTHERHAM LTD,38445395,"2,704.08"
Department of Health,NHS Rotherham CCG,31/10/2021,C&M-PCN DES PHARMACY TECHNICIANS,PRC DELEGATED CO-COMMISSIONING,CONNECT HEALTHCARE ROTHERHAM LTD,38445395,"3,240.46"
Department of Health,NHS Rotherham CCG,31/10/2021,C&M-PCN DES Paramedic Advanced Practitioner,PRC DELEGATED CO-COMMISSIONING,CONNECT HEALTHCARE ROTHERHAM LTD,38445395,"4,570.08"
Department of Health,NHS Rotherham CCG,31/10/2021,C&M-APMS LES Extended Hours,GP FORWARD VIEW,CONNECT HEALTHCARE ROTHERHAM LTD,38445410,"248,829.00"
Department of Health,NHS Rotherham CCG,31/10/2021,C&M-PMS Funding Differential Review,PRC DELEGATED CO-COMMISSIONING,CONNECT HEALTHCARE ROTHERHAM LTD,38630925,"104,436.45"
Department of Health,NHS Rotherham CCG,31/10/2021,Clinical&Medical-Commercial Sector,LEARNING DIFFICULTIES,COVEBERRY LTD,38630978,"30,240.00"
Department of Health,NHS Rotherham CCG,31/10/2021,Cont Care- Prior Year Payments,LEARNING DIFFICULTIES,COVEBERRY LTD,38630983,"31,248.00"
Department of Health,NHS Rotherham CCG,31/10/2021,Cont Care- Prior Year Payments,LEARNING DIFFICULTIES,COVEBERRY LTD,38630985,"28,224.00"
Department of Health,NHS Rotherham CCG,31/10/2021,Hlthcre-Foundation Trsts,LEARNING DIFFICULTIES,CUMBRIA NORTHUMBERLAND TYNE AND WEAR NHS FOUNDATION TRUST,38451926,"75,184.40"
Department of Health,NHS Rotherham CCG,31/10/2021,Hcare Srv Rec Fdtn Trust-Contract Baseline,ACUTE COMMISSIONING,DONCASTER AND BASSETLAW HOSPITALS NHS FOUNDATION TRUST,38451927,"945,201.90"
Department of Health,NHS Rotherham CCG,31/10/2021,C&M-PMS Contract Value,PRC DELEGATED CO-COMMISSIONING,NHS ROTHERHAM CCG GP PRACTICE,38406692,"41,743.27"
Department of Health,NHS Rotherham CCG,31/10/2021,C&M-PMS DES Learn Dsblty Hlth Chk,PRC DELEGATED CO-COMMISSIONING,NHS ROTHERHAM CCG GP PRACTICE,38406692,840.00
Department of Health,NHS Rotherham CCG,31/10/2021,C&M-PMS LONG COVID ES,PRC DELEGATED CO-COMMISSIONING,NHS ROTHERHAM CCG GP PRACTICE,38406692,235.30
Department of Health,NHS Rotherham CCG,31/10/2021,C&M-PMS PCN DES Participation,PRC DELEGATED CO-COMMISSIONING,NHS ROTHERHAM CCG GP PRACTICE,38406692,751.83
Department of Health,NHS Rotherham CCG,31/10/2021,C&M-PMS PCO Other,PRC DELEGATED CO-COMMISSIONING,NHS ROTHERHAM CCG GP PRACTICE,38406692,368.60
Department of Health,NHS Rotherham CCG,31/10/2021,C&M-PMS Prem Healthcentre Rent,PRC DELEGATED CO-COMMISSIONING,NHS ROTHERHAM CCG GP PRACTICE,38406692,983.68
Department of Health,NHS Rotherham CCG,31/10/2021,C&M-PMS Prem Notional Rent,PRC DELEGATED CO-COMMISSIONING,NHS ROTHERHAM CCG GP PRACTICE,38406692,"2,833.33"
Department of Health,NHS Rotherham CCG,31/10/2021,C&M-PMS Prem Rates,PRC DELEGATED CO-COMMISSIONING,NHS ROTHERHAM CCG GP PRACTICE,38406692,494.00
Department of Health,NHS Rotherham CCG,31/10/2021,C&M-PMS QOF Aspiration,PRC DELEGATED CO-COMMISSIONING,NHS ROTHERHAM CCG GP PRACTICE,38406692,"3,862.74"
Department of Health,NHS Rotherham CCG,31/10/2021,ME-PMS GP Pension EEs-PMS,PRC DELEGATED CO-COMMISSIONING,NHS ROTHERHAM CCG GP PRACTICE,38406692,625.00
Department of Health,NHS Rotherham CCG,31/10/2021,ME-PMS GP Pension ERs-PMS,PRC DELEGATED CO-COMMISSIONING,NHS ROTHERHAM CCG GP PRACTICE,38406692,719.00
Department of Health,NHS Rotherham CCG,31/10/2021,C&M-PMS Contract Value,PRC DELEGATED CO-COMMISSIONING,NHS ROTHERHAM CCG GP PRACTICE,38406727,"103,597.33"
Department of Health,NHS Rotherham CCG,31/10/2021,C&M-PMS LONG COVID ES,PRC DELEGATED CO-COMMISSIONING,NHS ROTHERHAM CCG GP PRACTICE,38406727,476.57
Department of Health,NHS Rotherham CCG,31/10/2021,C&M-PMS Out of Hours Opt Outs,PRC DELEGATED CO-COMMISSIONING,NHS ROTHERHAM CCG GP PRACTICE,38406727,1.42
Department of Health,NHS Rotherham CCG,31/10/2021,C&M-PMS PCN DES Participation,PRC DELEGATED CO-COMMISSIONING,NHS ROTHERHAM CCG GP PRACTICE,38406727,"1,875.85"
Department of Health,NHS Rotherham CCG,31/10/2021,C&M-PMS PCO Other,PRC DELEGATED CO-COMMISSIONING,NHS ROTHERHAM CCG GP PRACTICE,38406727,709.80
Department of Health,NHS Rotherham CCG,31/10/2021,C&M-PMS Prem Notional Rent,PRC DELEGATED CO-COMMISSIONING,NHS ROTHERHAM CCG GP PRACTICE,38406727,"10,560.78"
Department of Health,NHS Rotherham CCG,31/10/2021,C&M-PMS Prem Rates,PRC DELEGATED CO-COMMISSIONING,NHS ROTHERHAM CCG GP PRACTICE,38406727,"2,046.00"
Department of Health,NHS Rotherham CCG,31/10/2021,C&M-PMS QOF Aspiration,PRC DELEGATED CO-COMMISSIONING,NHS ROTHERHAM CCG GP PRACTICE,38406727,"11,486.29"
Department of Health,NHS Rotherham CCG,31/10/2021,C&M-PMS Contract Value,PRC DELEGATED CO-COMMISSIONING,NHS ROTHERHAM CCG GP PRACTICE,38406657,"97,714.02"
Department of Health,NHS Rotherham CCG,31/10/2021,C&M-PMS LONG COVID ES,PRC DELEGATED CO-COMMISSIONING,NHS ROTHERHAM CCG GP PRACTICE,38406657,456.87
Department of Health,NHS Rotherham CCG,31/10/2021,C&M-PMS PCN DES Participation,PRC DELEGATED CO-COMMISSIONING,NHS ROTHERHAM CCG GP PRACTICE,38406657,"1,765.42"
Department of Health,NHS Rotherham CCG,31/10/2021,C&M-PMS Prem Actual Rent,PRC DELEGATED CO-COMMISSIONING,NHS ROTHERHAM CCG GP PRACTICE,38406657,"16,393.75"
Department of Health,NHS Rotherham CCG,31/10/2021,C&M-PMS Prem Notional Rent,PRC DELEGATED CO-COMMISSIONING,NHS ROTHERHAM CCG GP PRACTICE,38406657,"10,122.75"
Department of Health,NHS Rotherham CCG,31/10/2021,C&M-PMS Prem Other,PRC DELEGATED CO-COMMISSIONING,NHS ROTHERHAM CCG GP PRACTICE,38406657,625.50
Department of Health,NHS Rotherham CCG,31/10/2021,C&M-PMS Prem Rates,PRC DELEGATED CO-COMMISSIONING,NHS ROTHERHAM CCG GP PRACTICE,38406657,"1,472.00"
Department of Health,NHS Rotherham CCG,31/10/2021,C&M-PMS QOF Aspiration,PRC DELEGATED CO-COMMISSIONING,NHS ROTHERHAM CCG GP PRACTICE,38406657,"9,536.52"
Department of Health,NHS Rotherham CCG,31/10/2021,ME-PMS GP Pension EEs Adjs - PMS,PRC DELEGATED CO-COMMISSIONING,NHS ROTHERHAM CCG GP PRACTICE,38406657,19.79
Department of Health,NHS Rotherham CCG,31/10/2021,ME-PMS GP Pension EEs-PMS,PRC DELEGATED CO-COMMISSIONING,NHS ROTHERHAM CCG GP PRACTICE,38406657,"5,536.88"
Department of Health,NHS Rotherham CCG,31/10/2021,ME-PMS GP Pension ERs Adjs - PMS,PRC DELEGATED CO-COMMISSIONING,NHS ROTHERHAM CCG GP PRACTICE,38406657,22.77
Department of Health,NHS Rotherham CCG,31/10/2021,ME-PMS GP Pension ERs-PMS,PRC DELEGATED CO-COMMISSIONING,NHS ROTHERHAM CCG GP PRACTICE,38406657,"5,474.12"
Department of Health,NHS Rotherham CCG,31/10/2021,C&M-GMS Global Sum,PRC DELEGATED CO-COMMISSIONING,NHS ROTHERHAM CCG GP PRACTICE,38593995,"49,612.30"
Department of Health,NHS Rotherham CCG,31/10/2021,C&M-GMS LONG COVID ES,PRC DELEGATED CO-COMMISSIONING,NHS ROTHERHAM CCG GP PRACTICE,38593995,238.92
Department of Health,NHS Rotherham CCG,31/10/2021,C&M-GMS PCN DES Participation,PRC DELEGATED CO-COMMISSIONING,NHS ROTHERHAM CCG GP PRACTICE,38593995,940.89
Department of Health,NHS Rotherham CCG,31/10/2021,C&M-GMS Prem Notional Rent,PRC DELEGATED CO-COMMISSIONING,NHS ROTHERHAM CCG GP PRACTICE,38593995,"3,166.67"
Department of Health,NHS Rotherham CCG,31/10/2021,C&M-GMS QOF Aspiration,PRC DELEGATED CO-COMMISSIONING,NHS ROTHERHAM CCG GP PRACTICE,38593995,"5,901.91"
Department of Health,NHS Rotherham CCG,31/10/2021,C&M-PMS Contract Value,PRC DELEGATED CO-COMMISSIONING,NHS ROTHERHAM CCG GP PRACTICE,38406712,"114,254.83"
Department of Health,NHS Rotherham CCG,31/10/2021,C&M-PMS LONG COVID ES,PRC DELEGATED CO-COMMISSIONING,NHS ROTHERHAM CCG GP PRACTICE,38406712,530.69
Department of Health,NHS Rotherham CCG,31/10/2021,C&M-PMS PCN DES Participation,PRC DELEGATED CO-COMMISSIONING,NHS ROTHERHAM CCG GP PRACTICE,38406712,"2,066.43"
Department of Health,NHS Rotherham CCG,31/10/2021,C&M-PMS Prem Healthcentre Rent,PRC DELEGATED CO-COMMISSIONING,NHS ROTHERHAM CCG GP PRACTICE,38406712,"1,772.27"
Department of Health,NHS Rotherham CCG,31/10/2021,C&M-PMS QOF Aspiration,PRC DELEGATED CO-COMMISSIONING,NHS ROTHERHAM CCG GP PRACTICE,38406712,"10,693.86"
Department of Health,NHS Rotherham CCG,31/10/2021,C&M-GMS Global Sum,PRC DELEGATED CO-COMMISSIONING,NHS ROTHERHAM CCG GP PRACTICE,38593989,"96,562.10"
Department of Health,NHS Rotherham CCG,31/10/2021,C&M-GMS LONG COVID ES,PRC DELEGATED CO-COMMISSIONING,NHS ROTHERHAM CCG GP PRACTICE,38593989,478.43
Department of Health,NHS Rotherham CCG,31/10/2021,C&M-GMS PCN DES Participation,PRC DELEGATED CO-COMMISSIONING,NHS ROTHERHAM CCG GP PRACTICE,38593989,"1,822.71"
Department of Health,NHS Rotherham CCG,31/10/2021,C&M-GMS Prem Notional Rent,PRC DELEGATED CO-COMMISSIONING,NHS ROTHERHAM CCG GP PRACTICE,38593989,"7,842.10"
Department of Health,NHS Rotherham CCG,31/10/2021,C&M-GMS Prem Rates,PRC DELEGATED CO-COMMISSIONING,NHS ROTHERHAM CCG GP PRACTICE,38593989,"1,821.00"
Department of Health,NHS Rotherham CCG,31/10/2021,C&M-GMS QOF Aspiration,PRC DELEGATED CO-COMMISSIONING,NHS ROTHERHAM CCG GP PRACTICE,38593989,"11,124.89"
Department of Health,NHS Rotherham CCG,31/10/2021,C&M-PMS Contract Value,PRC DELEGATED CO-COMMISSIONING,NHS ROTHERHAM CCG GP PRACTICE,38406737,"-1,193.90"
Department of Health,NHS Rotherham CCG,31/10/2021,C&M-PMS GP Statutory Levy,PRC DELEGATED CO-COMMISSIONING,NHS ROTHERHAM CCG GP PRACTICE,38406737,"-1,169.32"
Department of Health,NHS Rotherham CCG,31/10/2021,C&M-PMS Out of Hours Opt Outs,PRC DELEGATED CO-COMMISSIONING,NHS ROTHERHAM CCG GP PRACTICE,38406737,"-8,568.78"
Department of Health,NHS Rotherham CCG,31/10/2021,C&M-PMS Voluntary Levy,PRC DELEGATED CO-COMMISSIONING,NHS ROTHERHAM CCG GP PRACTICE,38406737,-171.96
Department of Health,NHS Rotherham CCG,31/10/2021,ME - PMS GP Prior Year ERs,PRC DELEGATED CO-COMMISSIONING,NHS ROTHERHAM CCG GP PRACTICE,38406737,-726.63
Department of Health,NHS Rotherham CCG,31/10/2021,ME-PMS GP Pension Added Years EEs,PRC DELEGATED CO-COMMISSIONING,NHS ROTHERHAM CCG GP PRACTICE,38406737,-600.00
Department of Health,NHS Rotherham CCG,31/10/2021,ME-PMS GP Pension EEs Adjs - PMS,PRC DELEGATED CO-COMMISSIONING,NHS ROTHERHAM CCG GP PRACTICE,38406737,"-30,694.17"
Department of Health,NHS Rotherham CCG,31/10/2021,ME-PMS GP Pension EEs-PMS,PRC DELEGATED CO-COMMISSIONING,NHS ROTHERHAM CCG GP PRACTICE,38406737,"-11,601.47"
Department of Health,NHS Rotherham CCG,31/10/2021,ME-PMS GP Pension ERs Adjs - PMS,PRC DELEGATED CO-COMMISSIONING,NHS ROTHERHAM CCG GP PRACTICE,38406737,"-30,483.15"
Department of Health,NHS Rotherham CCG,31/10/2021,ME-PMS GP Pension ERs-PMS,PRC DELEGATED CO-COMMISSIONING,NHS ROTHERHAM CCG GP PRACTICE,38406737,"-12,558.53"
Department of Health,NHS Rotherham CCG,31/10/2021,ME-PMS GP Prior Year EEs,PRC DELEGATED CO-COMMISSIONING,NHS ROTHERHAM CCG GP PRACTICE,38406737,-469.93
Department of Health,NHS Rotherham CCG,31/10/2021,C&M-PMS Contract Value,PRC DELEGATED CO-COMMISSIONING,NHS ROTHERHAM CCG GP PRACTICE,38426488,"181,876.18"
Department of Health,NHS Rotherham CCG,31/10/2021,C&M-PMS DES Learn Dsblty Hlth Chk,PRC DELEGATED CO-COMMISSIONING,NHS ROTHERHAM CCG GP PRACTICE,38426488,140.00
Department of Health,NHS Rotherham CCG,31/10/2021,C&M-PMS LONG COVID ES,PRC DELEGATED CO-COMMISSIONING,NHS ROTHERHAM CCG GP PRACTICE,38426488,852.81
Department of Health,NHS Rotherham CCG,31/10/2021,C&M-PMS Out of Hours Opt Outs,PRC DELEGATED CO-COMMISSIONING,NHS ROTHERHAM CCG GP PRACTICE,38426488,12.35
Department of Health,NHS Rotherham CCG,31/10/2021,C&M-PMS PCN DES Participation,PRC DELEGATED CO-COMMISSIONING,NHS ROTHERHAM CCG GP PRACTICE,38426488,"3,293.12"
Department of Health,NHS Rotherham CCG,31/10/2021,C&M-PMS PCO Locum Adop/Pat/Mat,PRC DELEGATED CO-COMMISSIONING,NHS ROTHERHAM CCG GP PRACTICE,38426488,"6,560.06"
Department of Health,NHS Rotherham CCG,31/10/2021,C&M-PMS Prem Actual Rent,PRC DELEGATED CO-COMMISSIONING,NHS ROTHERHAM CCG GP PRACTICE,38426488,"12,725.00"
Department of Health,NHS Rotherham CCG,31/10/2021,C&M-PMS Prem Notional Rent,PRC DELEGATED CO-COMMISSIONING,NHS ROTHERHAM CCG GP PRACTICE,38426488,"7,706.25"
Department of Health,NHS Rotherham CCG,31/10/2021,C&M-PMS Prem Rates,PRC DELEGATED CO-COMMISSIONING,NHS ROTHERHAM CCG GP PRACTICE,38426488,"3,464.00"
Department of Health,NHS Rotherham CCG,31/10/2021,C&M-PMS QOF Aspiration,PRC DELEGATED CO-COMMISSIONING,NHS ROTHERHAM CCG GP PRACTICE,38426488,"20,967.97"
Department of Health,NHS Rotherham CCG,31/10/2021,ME - PMS GP Prior Year ERs,PRC DELEGATED CO-COMMISSIONING,NHS ROTHERHAM CCG GP PRACTICE,38426488,"2,167.19"
Department of Health,NHS Rotherham CCG,31/10/2021,ME-PMS GP Prior Year AVCs,PRC DELEGATED CO-COMMISSIONING,NHS ROTHERHAM CCG GP PRACTICE,38426488,"1,278.89"
Department of Health,NHS Rotherham CCG,31/10/2021,ME-PMS GP Prior Year EEs,PRC DELEGATED CO-COMMISSIONING,NHS ROTHERHAM CCG GP PRACTICE,38426488,"1,918.34"
Department of Health,NHS Rotherham CCG,31/10/2021,C&M-PMS Cost of Drugs -Dispensing,LOCAL ENHANCED SERVICES,NHS ROTHERHAM CCG GP PRACTICE,38615420,"41,992.53"
Department of Health,NHS Rotherham CCG,31/10/2021,C&M-PMS Prof fees Dispensing,PRC DELEGATED CO-COMMISSIONING,NHS ROTHERHAM CCG GP PRACTICE,38615420,"8,109.98"
Department of Health,NHS Rotherham CCG,31/10/2021,C&M-PMS Funding Differential Review,PRC DELEGATED CO-COMMISSIONING,NHS ROTHERHAM CCG GP PRACTICE,38316566,"28,569.00"
Department of Health,NHS Rotherham CCG,31/10/2021,C&M-PMS Contract Value,PRC DELEGATED CO-COMMISSIONING,NHS ROTHERHAM CCG GP PRACTICE,38406680,"102,433.15"
Department of Health,NHS Rotherham CCG,31/10/2021,C&M-PMS DES Extended Hours Access,PRC DELEGATED CO-COMMISSIONING,NHS ROTHERHAM CCG GP PRACTICE,38406680,"6,796.08"
Department of Health,NHS Rotherham CCG,31/10/2021,C&M-PMS DES Learn Dsblty Hlth Chk,PRC DELEGATED CO-COMMISSIONING,NHS ROTHERHAM CCG GP PRACTICE,38406680,700.00
Department of Health,NHS Rotherham CCG,31/10/2021,C&M-PMS LONG COVID ES,PRC DELEGATED CO-COMMISSIONING,NHS ROTHERHAM CCG GP PRACTICE,38406680,474.43
Department of Health,NHS Rotherham CCG,31/10/2021,C&M-PMS PCN DES Clinical Director,PRC DELEGATED CO-COMMISSIONING,NHS ROTHERHAM CCG GP PRACTICE,38406680,"3,473.55"
Department of Health,NHS Rotherham CCG,31/10/2021,C&M-PMS PCN DES PCN support,PRC DELEGATED CO-COMMISSIONING,NHS ROTHERHAM CCG GP PRACTICE,38406680,"7,079.25"
Department of Health,NHS Rotherham CCG,31/10/2021,C&M-PMS PCN DES Participation,PRC DELEGATED CO-COMMISSIONING,NHS ROTHERHAM CCG GP PRACTICE,38406680,"1,850.31"
Department of Health,NHS Rotherham CCG,31/10/2021,C&M-PMS PCO Locum Adop/Pat/Mat,PRC DELEGATED CO-COMMISSIONING,NHS ROTHERHAM CCG GP PRACTICE,38406680,"5,216.52"
Department of Health,NHS Rotherham CCG,31/10/2021,C&M-PMS Prem Notional Rent,PRC DELEGATED CO-COMMISSIONING,NHS ROTHERHAM CCG GP PRACTICE,38406680,"16,068.75"
Department of Health,NHS Rotherham CCG,31/10/2021,C&M-PMS Prem Rates,PRC DELEGATED CO-COMMISSIONING,NHS ROTHERHAM CCG GP PRACTICE,38406680,"3,074.00"
Department of Health,NHS Rotherham CCG,31/10/2021,C&M-PMS QOF Aspiration,PRC DELEGATED CO-COMMISSIONING,NHS ROTHERHAM CCG GP PRACTICE,38406680,"11,314.68"
Department of Health,NHS Rotherham CCG,31/10/2021,C&M-PMS Cost of Drugs -Dispensing,LOCAL ENHANCED SERVICES,NHS ROTHERHAM CCG GP PRACTICE,38615426,"53,914.43"
Department of Health,NHS Rotherham CCG,31/10/2021,C&M-PMS Prof fees Dispensing,PRC DELEGATED CO-COMMISSIONING,NHS ROTHERHAM CCG GP PRACTICE,38615426,"10,112.98"
Department of Health,NHS Rotherham CCG,31/10/2021,C&M-GMS DES Learn Dsblty Hlth Chk,PRC DELEGATED CO-COMMISSIONING,NHS ROTHERHAM CCG GP PRACTICE,38593991,280.00
Department of Health,NHS Rotherham CCG,31/10/2021,C&M-GMS Global Sum,PRC DELEGATED CO-COMMISSIONING,NHS ROTHERHAM CCG GP PRACTICE,38593991,"100,279.28"
Department of Health,NHS Rotherham CCG,31/10/2021,C&M-GMS LONG COVID ES,PRC DELEGATED CO-COMMISSIONING,NHS ROTHERHAM CCG GP PRACTICE,38593991,492.15
Department of Health,NHS Rotherham CCG,31/10/2021,C&M-GMS PCN DES Participation,PRC DELEGATED CO-COMMISSIONING,NHS ROTHERHAM CCG GP PRACTICE,38593991,"1,887.05"
Department of Health,NHS Rotherham CCG,31/10/2021,C&M-GMS Prem Cost Rent,PRC DELEGATED CO-COMMISSIONING,NHS ROTHERHAM CCG GP PRACTICE,38593991,762.92
Department of Health,NHS Rotherham CCG,31/10/2021,C&M-GMS Prem Notional Rent,PRC DELEGATED CO-COMMISSIONING,NHS ROTHERHAM CCG GP PRACTICE,38593991,"9,272.91"
Department of Health,NHS Rotherham CCG,31/10/2021,C&M-GMS Prem Rates,PRC DELEGATED CO-COMMISSIONING,NHS ROTHERHAM CCG GP PRACTICE,38593991,"1,459.00"
Department of Health,NHS Rotherham CCG,31/10/2021,C&M-GMS Prem Water Rates,PRC DELEGATED CO-COMMISSIONING,NHS ROTHERHAM CCG GP PRACTICE,38593991,91.63
Department of Health,NHS Rotherham CCG,31/10/2021,C&M-GMS QOF Aspiration,PRC DELEGATED CO-COMMISSIONING,NHS ROTHERHAM CCG GP PRACTICE,38593991,"10,200.89"
Department of Health,NHS Rotherham CCG,31/10/2021,ME - GMS GP Prior Year ERs,PRC DELEGATED CO-COMMISSIONING,NHS ROTHERHAM CCG GP PRACTICE,38593991,"2,176.10"
Department of Health,NHS Rotherham CCG,31/10/2021,ME-GMS GP Pension EEs,PRC DELEGATED CO-COMMISSIONING,NHS ROTHERHAM CCG GP PRACTICE,38593991,585.83
Department of Health,NHS Rotherham CCG,31/10/2021,ME-GMS GP Prior Year EEs,PRC DELEGATED CO-COMMISSIONING,NHS ROTHERHAM CCG GP PRACTICE,38593991,"2,194.26"
Department of Health,NHS Rotherham CCG,31/10/2021,C&M-PMS Contract Value,PRC DELEGATED CO-COMMISSIONING,NHS ROTHERHAM CCG GP PRACTICE,38406704,-942.67
Department of Health,NHS Rotherham CCG,31/10/2021,C&M-PMS GP Statutory Levy,PRC DELEGATED CO-COMMISSIONING,NHS ROTHERHAM CCG GP PRACTICE,38406704,-839.04
Department of Health,NHS Rotherham CCG,31/10/2021,C&M-PMS Out of Hours Opt Outs,PRC DELEGATED CO-COMMISSIONING,NHS ROTHERHAM CCG GP PRACTICE,38406704,"-5,992.83"
Department of Health,NHS Rotherham CCG,31/10/2021,C&M-PMS Voluntary Levy,PRC DELEGATED CO-COMMISSIONING,NHS ROTHERHAM CCG GP PRACTICE,38406704,-123.38
Department of Health,NHS Rotherham CCG,31/10/2021,ME - PMS GP Prior Year ERs,PRC DELEGATED CO-COMMISSIONING,NHS ROTHERHAM CCG GP PRACTICE,38406704,"-3,823.38"
Department of Health,NHS Rotherham CCG,31/10/2021,ME-PMS GP Pension EEs-PMS,PRC DELEGATED CO-COMMISSIONING,NHS ROTHERHAM CCG GP PRACTICE,38406704,"-8,838.28"
Department of Health,NHS Rotherham CCG,31/10/2021,ME-PMS GP Pension ERs-PMS,PRC DELEGATED CO-COMMISSIONING,NHS ROTHERHAM CCG GP PRACTICE,38406704,"-9,297.22"
Department of Health,NHS Rotherham CCG,31/10/2021,ME-PMS GP Prior Year EEs,PRC DELEGATED CO-COMMISSIONING,NHS ROTHERHAM CCG GP PRACTICE,38406704,"-3,855.28"
Department of Health,NHS Rotherham CCG,31/10/2021,C&M-PMS Contract Value,PRC DELEGATED CO-COMMISSIONING,NHS ROTHERHAM CCG GP PRACTICE,38426483,"127,195.16"
Department of Health,NHS Rotherham CCG,31/10/2021,C&M-PMS DES Learn Dsblty Hlth Chk,PRC DELEGATED CO-COMMISSIONING,NHS ROTHERHAM CCG GP PRACTICE,38426483,140.00
Department of Health,NHS Rotherham CCG,31/10/2021,C&M-PMS LONG COVID ES,PRC DELEGATED CO-COMMISSIONING,NHS ROTHERHAM CCG GP PRACTICE,38426483,"2,447.44"
Department of Health,NHS Rotherham CCG,31/10/2021,C&M-PMS Out of Hours Opt Outs,PRC DELEGATED CO-COMMISSIONING,NHS ROTHERHAM CCG GP PRACTICE,38426483,13.75
Department of Health,NHS Rotherham CCG,31/10/2021,C&M-PMS PCN DES Participation,PRC DELEGATED CO-COMMISSIONING,NHS ROTHERHAM CCG GP PRACTICE,38426483,"2,303.11"
Department of Health,NHS Rotherham CCG,31/10/2021,C&M-PMS Prem Notional Rent,PRC DELEGATED CO-COMMISSIONING,NHS ROTHERHAM CCG GP PRACTICE,38426483,"10,391.67"
Department of Health,NHS Rotherham CCG,31/10/2021,C&M-PMS QOF Aspiration,PRC DELEGATED CO-COMMISSIONING,NHS ROTHERHAM CCG GP PRACTICE,38426483,"13,406.63"
Department of Health,NHS Rotherham CCG,31/10/2021,C&M-PMS Contract Value,PRC DELEGATED CO-COMMISSIONING,NHS ROTHERHAM CCG GP PRACTICE,38406717,"161,983.11"
Department of Health,NHS Rotherham CCG,31/10/2021,C&M-PMS LONG COVID ES,PRC DELEGATED CO-COMMISSIONING,NHS ROTHERHAM CCG GP PRACTICE,38406717,733.14
Department of Health,NHS Rotherham CCG,31/10/2021,C&M-PMS PCN DES Participation,PRC DELEGATED CO-COMMISSIONING,NHS ROTHERHAM CCG GP PRACTICE,38406717,"2,923.32"
Department of Health,NHS Rotherham CCG,31/10/2021,C&M-PMS PCO Other,PRC DELEGATED CO-COMMISSIONING,NHS ROTHERHAM CCG GP PRACTICE,38406717,"1,064.60"
Department of Health,NHS Rotherham CCG,31/10/2021,C&M-PMS Prem Healthcentre Rent,PRC DELEGATED CO-COMMISSIONING,NHS ROTHERHAM CCG GP PRACTICE,38406717,525.58
Department of Health,NHS Rotherham CCG,31/10/2021,C&M-PMS Prem Notional Rent,PRC DELEGATED CO-COMMISSIONING,NHS ROTHERHAM CCG GP PRACTICE,38406717,"21,573.33"
Department of Health,NHS Rotherham CCG,31/10/2021,C&M-PMS QOF Aspiration,PRC DELEGATED CO-COMMISSIONING,NHS ROTHERHAM CCG GP PRACTICE,38406717,"15,905.34"
Department of Health,NHS Rotherham CCG,31/10/2021,C&M-PMS Contract Value,PRC DELEGATED CO-COMMISSIONING,NHS ROTHERHAM CCG GP PRACTICE,38406720,-828.60
Department of Health,NHS Rotherham CCG,31/10/2021,C&M-PMS GP Statutory Levy,PRC DELEGATED CO-COMMISSIONING,NHS ROTHERHAM CCG GP PRACTICE,38406720,"-1,014.25"
Department of Health,NHS Rotherham CCG,31/10/2021,C&M-PMS Out of Hours Opt Outs,PRC DELEGATED CO-COMMISSIONING,NHS ROTHERHAM CCG GP PRACTICE,38406720,"-7,631.24"
Department of Health,NHS Rotherham CCG,31/10/2021,C&M-PMS Voluntary Levy,PRC DELEGATED CO-COMMISSIONING,NHS ROTHERHAM CCG GP PRACTICE,38406720,-149.15
Department of Health,NHS Rotherham CCG,31/10/2021,ME-PMS GP Pension Added Years EEs,PRC DELEGATED CO-COMMISSIONING,NHS ROTHERHAM CCG GP PRACTICE,38406720,-189.80
Department of Health,NHS Rotherham CCG,31/10/2021,ME-PMS GP Pension EEs-PMS,PRC DELEGATED CO-COMMISSIONING,NHS ROTHERHAM CCG GP PRACTICE,38406720,"-10,455.47"
Department of Health,NHS Rotherham CCG,31/10/2021,ME-PMS GP Pension ERs-PMS,PRC DELEGATED CO-COMMISSIONING,NHS ROTHERHAM CCG GP PRACTICE,38406720,"-11,098.56"
Department of Health,NHS Rotherham CCG,31/10/2021,C&M-PMS Contract Value,PRC DELEGATED CO-COMMISSIONING,NHS ROTHERHAM CCG GP PRACTICE,38406651,"60,142.11"
Department of Health,NHS Rotherham CCG,31/10/2021,C&M-PMS LONG COVID ES,PRC DELEGATED CO-COMMISSIONING,NHS ROTHERHAM CCG GP PRACTICE,38406651,285.09
Department of Health,NHS Rotherham CCG,31/10/2021,C&M-PMS Out of Hours Opt Outs,PRC DELEGATED CO-COMMISSIONING,NHS ROTHERHAM CCG GP PRACTICE,38406651,17.73
Department of Health,NHS Rotherham CCG,31/10/2021,C&M-PMS PCN DES Participation,PRC DELEGATED CO-COMMISSIONING,NHS ROTHERHAM CCG GP PRACTICE,38406651,"1,088.95"
Department of Health,NHS Rotherham CCG,31/10/2021,C&M-PMS Prem Healthcentre Rent,PRC DELEGATED CO-COMMISSIONING,NHS ROTHERHAM CCG GP PRACTICE,38406651,"4,038.20"
Department of Health,NHS Rotherham CCG,31/10/2021,C&M-PMS QOF Aspiration,PRC DELEGATED CO-COMMISSIONING,NHS ROTHERHAM CCG GP PRACTICE,38406651,"6,029.07"
Department of Health,NHS Rotherham CCG,31/10/2021,C&M-GMS Global Sum,PRC DELEGATED CO-COMMISSIONING,NHS ROTHERHAM CCG GP PRACTICE,38595240,"28,744.20"
Department of Health,NHS Rotherham CCG,31/10/2021,C&M-GMS LONG COVID ES,PRC DELEGATED CO-COMMISSIONING,NHS ROTHERHAM CCG GP PRACTICE,38595240,141.02
Department of Health,NHS Rotherham CCG,31/10/2021,C&M-GMS PCN DES Participation,PRC DELEGATED CO-COMMISSIONING,NHS ROTHERHAM CCG GP PRACTICE,38595240,569.69
Department of Health,NHS Rotherham CCG,31/10/2021,C&M-GMS Prem Healthcentre Rent,PRC DELEGATED CO-COMMISSIONING,NHS ROTHERHAM CCG GP PRACTICE,38595240,"2,720.73"
Department of Health,NHS Rotherham CCG,31/10/2021,C&M-GMS QOF Aspiration,PRC DELEGATED CO-COMMISSIONING,NHS ROTHERHAM CCG GP PRACTICE,38595240,"3,273.58"
Department of Health,NHS Rotherham CCG,31/10/2021,C&M-PMS Contract Value,PRC DELEGATED CO-COMMISSIONING,NHS ROTHERHAM CCG GP PRACTICE,38406668,"30,626.83"
Department of Health,NHS Rotherham CCG,31/10/2021,C&M-PMS LONG COVID ES,PRC DELEGATED CO-COMMISSIONING,NHS ROTHERHAM CCG GP PRACTICE,38406668,146.55
Department of Health,NHS Rotherham CCG,31/10/2021,C&M-PMS PCN DES Participation,PRC DELEGATED CO-COMMISSIONING,NHS ROTHERHAM CCG GP PRACTICE,38406668,549.03
Department of Health,NHS Rotherham CCG,31/10/2021,C&M-PMS PCO Locum Sickness,PRC DELEGATED CO-COMMISSIONING,NHS ROTHERHAM CCG GP PRACTICE,38406668,"17,045.00"
Department of Health,NHS Rotherham CCG,31/10/2021,C&M-PMS Prem Notional Rent,PRC DELEGATED CO-COMMISSIONING,NHS ROTHERHAM CCG GP PRACTICE,38406668,"3,208.33"
Department of Health,NHS Rotherham CCG,31/10/2021,C&M-PMS QOF Aspiration,PRC DELEGATED CO-COMMISSIONING,NHS ROTHERHAM CCG GP PRACTICE,38406668,"3,229.04"
Department of Health,NHS Rotherham CCG,31/10/2021,C&M-PMS Contract Value,PRC DELEGATED CO-COMMISSIONING,NHS ROTHERHAM CCG GP PRACTICE,38406687,"57,513.27"
Department of Health,NHS Rotherham CCG,31/10/2021,C&M-PMS DES Learn Dsblty Hlth Chk,PRC DELEGATED CO-COMMISSIONING,NHS ROTHERHAM CCG GP PRACTICE,38406687,560.00
Department of Health,NHS Rotherham CCG,31/10/2021,C&M-PMS LONG COVID ES,PRC DELEGATED CO-COMMISSIONING,NHS ROTHERHAM CCG GP PRACTICE,38406687,264.11
Department of Health,NHS Rotherham CCG,31/10/2021,C&M-PMS Out of Hours Opt Outs,PRC DELEGATED CO-COMMISSIONING,NHS ROTHERHAM CCG GP PRACTICE,38406687,5.50
Department of Health,NHS Rotherham CCG,31/10/2021,C&M-PMS PCN DES Participation,PRC DELEGATED CO-COMMISSIONING,NHS ROTHERHAM CCG GP PRACTICE,38406687,"1,041.36"
Department of Health,NHS Rotherham CCG,31/10/2021,C&M-PMS Prem Notional Rent,PRC DELEGATED CO-COMMISSIONING,NHS ROTHERHAM CCG GP PRACTICE,38406687,"6,791.67"
Department of Health,NHS Rotherham CCG,31/10/2021,C&M-PMS QOF Aspiration,PRC DELEGATED CO-COMMISSIONING,NHS ROTHERHAM CCG GP PRACTICE,38406687,"5,718.38"
Department of Health,NHS Rotherham CCG,31/10/2021,C&M-GMS DES Learn Dsblty Hlth Chk,PRC DELEGATED CO-COMMISSIONING,NHS ROTHERHAM CCG GP PRACTICE,38593997,140.00
Department of Health,NHS Rotherham CCG,31/10/2021,C&M-GMS Global Sum,PRC DELEGATED CO-COMMISSIONING,NHS ROTHERHAM CCG GP PRACTICE,38593997,"80,570.37"
Department of Health,NHS Rotherham CCG,31/10/2021,C&M-GMS LONG COVID ES,PRC DELEGATED CO-COMMISSIONING,NHS ROTHERHAM CCG GP PRACTICE,38593997,376.52
Department of Health,NHS Rotherham CCG,31/10/2021,C&M-GMS PCN DES Participation,PRC DELEGATED CO-COMMISSIONING,NHS ROTHERHAM CCG GP PRACTICE,38593997,"1,521.97"
Department of Health,NHS Rotherham CCG,31/10/2021,C&M-GMS PCO Other,PRC DELEGATED CO-COMMISSIONING,NHS ROTHERHAM CCG GP PRACTICE,38593997,"2,328.00"
Department of Health,NHS Rotherham CCG,31/10/2021,C&M-GMS Prem Notional Rent,PRC DELEGATED CO-COMMISSIONING,NHS ROTHERHAM CCG GP PRACTICE,38593997,"6,687.50"
Department of Health,NHS Rotherham CCG,31/10/2021,C&M-GMS Prem Rates,PRC DELEGATED CO-COMMISSIONING,NHS ROTHERHAM CCG GP PRACTICE,38593997,790.00
Department of Health,NHS Rotherham CCG,31/10/2021,C&M-GMS Prem Water Rates,PRC DELEGATED CO-COMMISSIONING,NHS ROTHERHAM CCG GP PRACTICE,38593997,219.29
Department of Health,NHS Rotherham CCG,31/10/2021,C&M-GMS QOF Aspiration,PRC DELEGATED CO-COMMISSIONING,NHS ROTHERHAM CCG GP PRACTICE,38593997,"8,787.06"
Department of Health,NHS Rotherham CCG,31/10/2021,C&M-GMS Global Sum,PRC DELEGATED CO-COMMISSIONING,NHS ROTHERHAM CCG GP PRACTICE,38593993,"31,935.08"
Department of Health,NHS Rotherham CCG,31/10/2021,C&M-GMS LONG COVID ES,PRC DELEGATED CO-COMMISSIONING,NHS ROTHERHAM CCG GP PRACTICE,38593993,161.55
Department of Health,NHS Rotherham CCG,31/10/2021,C&M-GMS PCN DES Participation,PRC DELEGATED CO-COMMISSIONING,NHS ROTHERHAM CCG GP PRACTICE,38593993,600.82
Department of Health,NHS Rotherham CCG,31/10/2021,C&M-GMS Prem Healthcentre Rent,PRC DELEGATED CO-COMMISSIONING,NHS ROTHERHAM CCG GP PRACTICE,38593993,"3,816.64"
Department of Health,NHS Rotherham CCG,31/10/2021,C&M-GMS QOF Aspiration,PRC DELEGATED CO-COMMISSIONING,NHS ROTHERHAM CCG GP PRACTICE,38593993,"2,996.91"
Department of Health,NHS Rotherham CCG,31/10/2021,C&M-PMS Contract Value,PRC DELEGATED CO-COMMISSIONING,NHS ROTHERHAM CCG GP PRACTICE,38406740,"71,693.54"
Department of Health,NHS Rotherham CCG,31/10/2021,C&M-PMS LONG COVID ES,PRC DELEGATED CO-COMMISSIONING,NHS ROTHERHAM CCG GP PRACTICE,38406740,329.78
Department of Health,NHS Rotherham CCG,31/10/2021,C&M-PMS PCN DES Participation,PRC DELEGATED CO-COMMISSIONING,NHS ROTHERHAM CCG GP PRACTICE,38406740,"1,285.29"
Department of Health,NHS Rotherham CCG,31/10/2021,C&M-PMS PCO Locum Adop/Pat/Mat,PRC DELEGATED CO-COMMISSIONING,NHS ROTHERHAM CCG GP PRACTICE,38406740,"8,732.00"
Department of Health,NHS Rotherham CCG,31/10/2021,C&M-PMS PCO Other,PRC DELEGATED CO-COMMISSIONING,NHS ROTHERHAM CCG GP PRACTICE,38406740,506.90
Department of Health,NHS Rotherham CCG,31/10/2021,C&M-PMS Prem Notional Rent,PRC DELEGATED CO-COMMISSIONING,NHS ROTHERHAM CCG GP PRACTICE,38406740,"4,779.17"
Department of Health,NHS Rotherham CCG,31/10/2021,C&M-PMS Prem Rates,PRC DELEGATED CO-COMMISSIONING,NHS ROTHERHAM CCG GP PRACTICE,38406740,836.00
Department of Health,NHS Rotherham CCG,31/10/2021,C&M-PMS Prem Water Rates,PRC DELEGATED CO-COMMISSIONING,NHS ROTHERHAM CCG GP PRACTICE,38406740,77.65
Department of Health,NHS Rotherham CCG,31/10/2021,C&M-PMS QOF Aspiration,PRC DELEGATED CO-COMMISSIONING,NHS ROTHERHAM CCG GP PRACTICE,38406740,"6,824.45"
Department of Health,NHS Rotherham CCG,31/10/2021,C&M-PMS Contract Value,PRC DELEGATED CO-COMMISSIONING,NHS ROTHERHAM CCG GP PRACTICE,38426480,"12,577.48"
Department of Health,NHS Rotherham CCG,31/10/2021,C&M-PMS PCN DES Participation,PRC DELEGATED CO-COMMISSIONING,NHS ROTHERHAM CCG GP PRACTICE,38426480,218.83
Department of Health,NHS Rotherham CCG,31/10/2021,C&M-PMS PCO Locum Sickness,PRC DELEGATED CO-COMMISSIONING,NHS ROTHERHAM CCG GP PRACTICE,38426480,"8,400.00"
Department of Health,NHS Rotherham CCG,31/10/2021,C&M-PMS PCO Other,PRC DELEGATED CO-COMMISSIONING,NHS ROTHERHAM CCG GP PRACTICE,38426480,131.90
Department of Health,NHS Rotherham CCG,31/10/2021,C&M-PMS Prem Notional Rent,PRC DELEGATED CO-COMMISSIONING,NHS ROTHERHAM CCG GP PRACTICE,38426480,"2,175.00"
Department of Health,NHS Rotherham CCG,31/10/2021,C&M-PMS QOF Aspiration,PRC DELEGATED CO-COMMISSIONING,NHS ROTHERHAM CCG GP PRACTICE,38426480,"1,552.19"
Department of Health,NHS Rotherham CCG,31/10/2021,C&M-PMS Contract Value,PRC DELEGATED CO-COMMISSIONING,NHS ROTHERHAM CCG GP PRACTICE,38408771,"53,158.26"
Department of Health,NHS Rotherham CCG,31/10/2021,C&M-PMS DES Learn Dsblty Hlth Chk,PRC DELEGATED CO-COMMISSIONING,NHS ROTHERHAM CCG GP PRACTICE,38408771,980.00
Department of Health,NHS Rotherham CCG,31/10/2021,C&M-PMS LONG COVID ES,PRC DELEGATED CO-COMMISSIONING,NHS ROTHERHAM CCG GP PRACTICE,38408771,232.66
Department of Health,NHS Rotherham CCG,31/10/2021,C&M-PMS Out of Hours Opt Outs,PRC DELEGATED CO-COMMISSIONING,NHS ROTHERHAM CCG GP PRACTICE,38408771,3.39
Department of Health,NHS Rotherham CCG,31/10/2021,C&M-PMS PCN DES Participation,PRC DELEGATED CO-COMMISSIONING,NHS ROTHERHAM CCG GP PRACTICE,38408771,962.48
Department of Health,NHS Rotherham CCG,31/10/2021,C&M-PMS PCO Other,PRC DELEGATED CO-COMMISSIONING,NHS ROTHERHAM CCG GP PRACTICE,38408771,372.60
Department of Health,NHS Rotherham CCG,31/10/2021,C&M-PMS Prem Notional Rent,PRC DELEGATED CO-COMMISSIONING,NHS ROTHERHAM CCG GP PRACTICE,38408771,"3,645.83"
Department of Health,NHS Rotherham CCG,31/10/2021,C&M-PMS Prem Rates,PRC DELEGATED CO-COMMISSIONING,NHS ROTHERHAM CCG GP PRACTICE,38408771,749.00
Department of Health,NHS Rotherham CCG,31/10/2021,C&M-PMS QOF Aspiration,PRC DELEGATED CO-COMMISSIONING,NHS ROTHERHAM CCG GP PRACTICE,38408771,"5,457.16"
Department of Health,NHS Rotherham CCG,31/10/2021,C&M-PMS Contract Value,PRC DELEGATED CO-COMMISSIONING,NHS ROTHERHAM CCG GP PRACTICE,38408755,"73,297.52"
Department of Health,NHS Rotherham CCG,31/10/2021,C&M-PMS LONG COVID ES,PRC DELEGATED CO-COMMISSIONING,NHS ROTHERHAM CCG GP PRACTICE,38408755,327.02
Department of Health,NHS Rotherham CCG,31/10/2021,C&M-PMS PCN DES Participation,PRC DELEGATED CO-COMMISSIONING,NHS ROTHERHAM CCG GP PRACTICE,38408755,"1,321.44"
Department of Health,NHS Rotherham CCG,31/10/2021,C&M-PMS PCO Other,PRC DELEGATED CO-COMMISSIONING,NHS ROTHERHAM CCG GP PRACTICE,38408755,503.10
Department of Health,NHS Rotherham CCG,31/10/2021,C&M-PMS Prem Healthcentre Rent,PRC DELEGATED CO-COMMISSIONING,NHS ROTHERHAM CCG GP PRACTICE,38408755,573.28
Department of Health,NHS Rotherham CCG,31/10/2021,C&M-PMS Prem Notional Rent,PRC DELEGATED CO-COMMISSIONING,NHS ROTHERHAM CCG GP PRACTICE,38408755,"3,402.08"
Department of Health,NHS Rotherham CCG,31/10/2021,C&M-PMS Prem Rates,PRC DELEGATED CO-COMMISSIONING,NHS ROTHERHAM CCG GP PRACTICE,38408755,574.00
Department of Health,NHS Rotherham CCG,31/10/2021,C&M-PMS QOF Aspiration,PRC DELEGATED CO-COMMISSIONING,NHS ROTHERHAM CCG GP PRACTICE,38408755,"6,570.80"
Department of Health,NHS Rotherham CCG,31/10/2021,C&M-PMS Contract Value,PRC DELEGATED CO-COMMISSIONING,NHS ROTHERHAM CCG GP PRACTICE,38408777,"56,857.04"
Department of Health,NHS Rotherham CCG,31/10/2021,C&M-PMS LONG COVID ES,PRC DELEGATED CO-COMMISSIONING,NHS ROTHERHAM CCG GP PRACTICE,38408777,290.62
Department of Health,NHS Rotherham CCG,31/10/2021,C&M-PMS PCN DES Participation,PRC DELEGATED CO-COMMISSIONING,NHS ROTHERHAM CCG GP PRACTICE,38408777,"1,010.08"
Department of Health,NHS Rotherham CCG,31/10/2021,C&M-PMS PCO Other,PRC DELEGATED CO-COMMISSIONING,NHS ROTHERHAM CCG GP PRACTICE,38408777,452.70
Department of Health,NHS Rotherham CCG,31/10/2021,C&M-PMS Prem Healthcentre Rent,PRC DELEGATED CO-COMMISSIONING,NHS ROTHERHAM CCG GP PRACTICE,38408777,"1,979.17"
Department of Health,NHS Rotherham CCG,31/10/2021,C&M-PMS QOF Aspiration,PRC DELEGATED CO-COMMISSIONING,NHS ROTHERHAM CCG GP PRACTICE,38408777,"4,964.34"
Department of Health,NHS Rotherham CCG,31/10/2021,C&M-PMS Contract Value,PRC DELEGATED CO-COMMISSIONING,NHS ROTHERHAM CCG GP PRACTICE,38406732,"49,874.88"
Department of Health,NHS Rotherham CCG,31/10/2021,C&M-PMS DES Learn Dsblty Hlth Chk,PRC DELEGATED CO-COMMISSIONING,NHS ROTHERHAM CCG GP PRACTICE,38406732,140.00
Department of Health,NHS Rotherham CCG,31/10/2021,C&M-PMS Out of Hours Opt Outs,PRC DELEGATED CO-COMMISSIONING,NHS ROTHERHAM CCG GP PRACTICE,38406732,4.32
Department of Health,NHS Rotherham CCG,31/10/2021,C&M-PMS PCN DES Participation,PRC DELEGATED CO-COMMISSIONING,NHS ROTHERHAM CCG GP PRACTICE,38406732,903.08
Department of Health,NHS Rotherham CCG,31/10/2021,C&M-PMS Prem Notional Rent,PRC DELEGATED CO-COMMISSIONING,NHS ROTHERHAM CCG GP PRACTICE,38406732,"7,242.52"
Department of Health,NHS Rotherham CCG,31/10/2021,C&M-PMS QOF Aspiration,PRC DELEGATED CO-COMMISSIONING,NHS ROTHERHAM CCG GP PRACTICE,38406732,"4,272.77"
Department of Health,NHS Rotherham CCG,31/10/2021,C&M-PMS Contract Value,PRC DELEGATED CO-COMMISSIONING,NHS ROTHERHAM CCG GP PRACTICE,38406663,"39,666.88"
Department of Health,NHS Rotherham CCG,31/10/2021,C&M-PMS LONG COVID ES,PRC DELEGATED CO-COMMISSIONING,NHS ROTHERHAM CCG GP PRACTICE,38406663,187.19
Department of Health,NHS Rotherham CCG,31/10/2021,C&M-PMS Out of Hours Opt Outs,PRC DELEGATED CO-COMMISSIONING,NHS ROTHERHAM CCG GP PRACTICE,38406663,13.68
Department of Health,NHS Rotherham CCG,31/10/2021,C&M-PMS PCN DES Participation,PRC DELEGATED CO-COMMISSIONING,NHS ROTHERHAM CCG GP PRACTICE,38406663,718.14
Department of Health,NHS Rotherham CCG,31/10/2021,C&M-PMS Prem Notional Rent,PRC DELEGATED CO-COMMISSIONING,NHS ROTHERHAM CCG GP PRACTICE,38406663,"3,204.17"
Department of Health,NHS Rotherham CCG,31/10/2021,C&M-PMS QOF Aspiration,PRC DELEGATED CO-COMMISSIONING,NHS ROTHERHAM CCG GP PRACTICE,38406663,"3,659.58"
Department of Health,NHS Rotherham CCG,31/10/2021,C&M-PMS Contract Value,PRC DELEGATED CO-COMMISSIONING,NHS ROTHERHAM CCG GP PRACTICE,38406699,"85,374.22"
Department of Health,NHS Rotherham CCG,31/10/2021,C&M-PMS LONG COVID ES,PRC DELEGATED CO-COMMISSIONING,NHS ROTHERHAM CCG GP PRACTICE,38406699,423.52
Department of Health,NHS Rotherham CCG,31/10/2021,C&M-PMS PCN DES Participation,PRC DELEGATED CO-COMMISSIONING,NHS ROTHERHAM CCG GP PRACTICE,38406699,"1,533.97"
Department of Health,NHS Rotherham CCG,31/10/2021,C&M-PMS PCO Other,PRC DELEGATED CO-COMMISSIONING,NHS ROTHERHAM CCG GP PRACTICE,38406699,636.50
Department of Health,NHS Rotherham CCG,31/10/2021,C&M-PMS Prem Notional Rent,PRC DELEGATED CO-COMMISSIONING,NHS ROTHERHAM CCG GP PRACTICE,38406699,"6,512.50"
Department of Health,NHS Rotherham CCG,31/10/2021,C&M-PMS Prem Rates,PRC DELEGATED CO-COMMISSIONING,NHS ROTHERHAM CCG GP PRACTICE,38406699,"2,058.00"
Department of Health,NHS Rotherham CCG,31/10/2021,C&M-PMS Prem Water Rates,PRC DELEGATED CO-COMMISSIONING,NHS ROTHERHAM CCG GP PRACTICE,38406699,150.00
Department of Health,NHS Rotherham CCG,31/10/2021,C&M-PMS QOF Aspiration,PRC DELEGATED CO-COMMISSIONING,NHS ROTHERHAM CCG GP PRACTICE,38406699,"8,578.88"
Department of Health,NHS Rotherham CCG,31/10/2021,C&M-APMS Contract Value,PRC DELEGATED CO-COMMISSIONING,NHS ROTHERHAM CCG GP PRACTICE,38406722,"69,480.03"
Department of Health,NHS Rotherham CCG,31/10/2021,C&M-APMS DES Learn Dsblty Hlth Chk,PRC DELEGATED CO-COMMISSIONING,NHS ROTHERHAM CCG GP PRACTICE,38406722,700.00
Department of Health,NHS Rotherham CCG,31/10/2021,C&M-APMS DES Violent Patients,PRC DELEGATED CO-COMMISSIONING,NHS ROTHERHAM CCG GP PRACTICE,38406722,604.00
Department of Health,NHS Rotherham CCG,31/10/2021,C&M-APMS LONG COVID ES,PRC DELEGATED CO-COMMISSIONING,NHS ROTHERHAM CCG GP PRACTICE,38406722,355.46
Department of Health,NHS Rotherham CCG,31/10/2021,C&M-APMS Other FDR Payment,PRC DELEGATED CO-COMMISSIONING,NHS ROTHERHAM CCG GP PRACTICE,38406722,"12,840.67"
Department of Health,NHS Rotherham CCG,31/10/2021,C&M-APMS PCN DES Participation,PRC DELEGATED CO-COMMISSIONING,NHS ROTHERHAM CCG GP PRACTICE,38406722,"1,223.46"
Department of Health,NHS Rotherham CCG,31/10/2021,C&M-APMS Prem Actual Rent,PRC DELEGATED CO-COMMISSIONING,NHS ROTHERHAM CCG GP PRACTICE,38406722,"2,083.33"
Department of Health,NHS Rotherham CCG,31/10/2021,C&M-APMS Prem Healthcentre Rent,PRC DELEGATED CO-COMMISSIONING,NHS ROTHERHAM CCG GP PRACTICE,38406722,"4,500.00"
Department of Health,NHS Rotherham CCG,31/10/2021,C&M-APMS QOF Aspiration,PRC DELEGATED CO-COMMISSIONING,NHS ROTHERHAM CCG GP PRACTICE,38406722,"6,195.91"
Department of Health,NHS Rotherham CCG,31/10/2021,Apprenticeship Levy Payable,BALANCE SHEET,HMRC,38410108,"1,156.00"
Department of Health,NHS Rotherham CCG,31/10/2021,Income tax <1Yr,BALANCE SHEET,HMRC,38410108,"74,641.70"
Department of Health,NHS Rotherham CCG,31/10/2021,Income tax <1Yr-Student Loans,BALANCE SHEET,HMRC,38410108,875.00
Department of Health,NHS Rotherham CCG,31/10/2021,National Insurance < 1 yr-NI- ERS,BALANCE SHEET,HMRC,38410108,"53,348.34"
Department of Health,NHS Rotherham CCG,31/10/2021,National Insurance < 1 yr-NI-EES,BALANCE SHEET,HMRC,38410108,"37,135.51"
Department of Health,NHS Rotherham CCG,31/10/2021,Utilisation-Cont Care<1Yr,BALANCE SHEET,HUGH JAMES INVOLEGAL LLP,38556554,"25,689.86"
Department of Health,NHS Rotherham CCG,31/10/2021,Clinical&Medical-Commercial Sector,MENTAL HEALTH SERVICES - OTHER,IESO DIGITAL HEALTH LTD,38397478,"109,698.00"
Department of Health,NHS Rotherham CCG,31/10/2021,Audit Fees: Statutory,ADMINISTRATION & BUSINESS SUPPORT,KPMG LLP,38556515,"36,000.00"
Department of Health,NHS Rotherham CCG,31/10/2021,C&M-PMS Contract Value,PRC DELEGATED CO-COMMISSIONING,NHS ROTHERHAM CCG GP PRACTICE,38408781,"127,627.39"
Department of Health,NHS Rotherham CCG,31/10/2021,C&M-PMS LONG COVID ES,PRC DELEGATED CO-COMMISSIONING,NHS ROTHERHAM CCG GP PRACTICE,38408781,569.98
Department of Health,NHS Rotherham CCG,31/10/2021,C&M-PMS Out of Hours Opt Outs,PRC DELEGATED CO-COMMISSIONING,NHS ROTHERHAM CCG GP PRACTICE,38408781,20.42
Department of Health,NHS Rotherham CCG,31/10/2021,C&M-PMS PCN DES Participation,PRC DELEGATED CO-COMMISSIONING,NHS ROTHERHAM CCG GP PRACTICE,38408781,"2,311.54"
Department of Health,NHS Rotherham CCG,31/10/2021,C&M-PMS PCO Other,PRC DELEGATED CO-COMMISSIONING,NHS ROTHERHAM CCG GP PRACTICE,38408781,839.00
Department of Health,NHS Rotherham CCG,31/10/2021,C&M-PMS Prem Actual Rent,PRC DELEGATED CO-COMMISSIONING,NHS ROTHERHAM CCG GP PRACTICE,38408781,"11,987.51"
Department of Health,NHS Rotherham CCG,31/10/2021,C&M-PMS Prem Healthcentre Rent,PRC DELEGATED CO-COMMISSIONING,NHS ROTHERHAM CCG GP PRACTICE,38408781,"1,165.73"
Department of Health,NHS Rotherham CCG,31/10/2021,C&M-PMS Prem Notional Rent,PRC DELEGATED CO-COMMISSIONING,NHS ROTHERHAM CCG GP PRACTICE,38408781,"9,541.66"
Department of Health,NHS Rotherham CCG,31/10/2021,C&M-PMS Prem Rates,PRC DELEGATED CO-COMMISSIONING,NHS ROTHERHAM CCG GP PRACTICE,38408781,"3,156.00"
Department of Health,NHS Rotherham CCG,31/10/2021,C&M-PMS QOF Aspiration,PRC DELEGATED CO-COMMISSIONING,NHS ROTHERHAM CCG GP PRACTICE,38408781,"12,842.51"
Department of Health,NHS Rotherham CCG,31/10/2021,ME - PMS GP Prior Year ERs,PRC DELEGATED CO-COMMISSIONING,NHS ROTHERHAM CCG GP PRACTICE,38408781,"5,668.99"
Department of Health,NHS Rotherham CCG,31/10/2021,ME-PMS GP Prior Year EEs,PRC DELEGATED CO-COMMISSIONING,NHS ROTHERHAM CCG GP PRACTICE,38408781,"5,368.38"
Department of Health,NHS Rotherham CCG,31/10/2021,C&M-PMS Contract Value,PRC DELEGATED CO-COMMISSIONING,NHS ROTHERHAM CCG GP PRACTICE,38408783,"-1,085.72"
Department of Health,NHS Rotherham CCG,31/10/2021,C&M-PMS GP Statutory Levy,PRC DELEGATED CO-COMMISSIONING,NHS ROTHERHAM CCG GP PRACTICE,38408783,-784.84
Department of Health,NHS Rotherham CCG,31/10/2021,C&M-PMS Out of Hours Opt Outs,PRC DELEGATED CO-COMMISSIONING,NHS ROTHERHAM CCG GP PRACTICE,38408783,"-6,014.67"
Department of Health,NHS Rotherham CCG,31/10/2021,C&M-PMS Voluntary Levy,PRC DELEGATED CO-COMMISSIONING,NHS ROTHERHAM CCG GP PRACTICE,38408783,-115.42
Department of Health,NHS Rotherham CCG,31/10/2021,ME-PMS GP Pension EEs-PMS,PRC DELEGATED CO-COMMISSIONING,NHS ROTHERHAM CCG GP PRACTICE,38408783,"-8,813.73"
Department of Health,NHS Rotherham CCG,31/10/2021,ME-PMS GP Pension ERs-PMS,PRC DELEGATED CO-COMMISSIONING,NHS ROTHERHAM CCG GP PRACTICE,38408783,"-9,681.86"
Department of Health,NHS Rotherham CCG,31/10/2021,C&M-PMS Contract Value,PRC DELEGATED CO-COMMISSIONING,NHS ROTHERHAM CCG GP PRACTICE,38406673,"57,673.66"
Department of Health,NHS Rotherham CCG,31/10/2021,C&M-PMS DES Learn Dsblty Hlth Chk,PRC DELEGATED CO-COMMISSIONING,NHS ROTHERHAM CCG GP PRACTICE,38406673,700.00
Department of Health,NHS Rotherham CCG,31/10/2021,C&M-PMS LONG COVID ES,PRC DELEGATED CO-COMMISSIONING,NHS ROTHERHAM CCG GP PRACTICE,38406673,268.89
Department of Health,NHS Rotherham CCG,31/10/2021,C&M-PMS Out of Hours Opt Outs,PRC DELEGATED CO-COMMISSIONING,NHS ROTHERHAM CCG GP PRACTICE,38406673,8.70
Department of Health,NHS Rotherham CCG,31/10/2021,C&M-PMS PCN DES Participation,PRC DELEGATED CO-COMMISSIONING,NHS ROTHERHAM CCG GP PRACTICE,38406673,"1,044.31"
Department of Health,NHS Rotherham CCG,31/10/2021,C&M-PMS Prem Healthcentre Rent,PRC DELEGATED CO-COMMISSIONING,NHS ROTHERHAM CCG GP PRACTICE,38406673,"3,166.67"
Department of Health,NHS Rotherham CCG,31/10/2021,C&M-PMS QOF Aspiration,PRC DELEGATED CO-COMMISSIONING,NHS ROTHERHAM CCG GP PRACTICE,38406673,"6,643.66"
Department of Health,NHS Rotherham CCG,31/10/2021,ME-PMS GP Pension EEs-PMS,PRC DELEGATED CO-COMMISSIONING,NHS ROTHERHAM CCG GP PRACTICE,38406673,120.31
Department of Health,NHS Rotherham CCG,31/10/2021,ME-PMS GP Pension ERs-PMS,PRC DELEGATED CO-COMMISSIONING,NHS ROTHERHAM CCG GP PRACTICE,38406673,138.41
Department of Health,NHS Rotherham CCG,31/10/2021,Clinical&Medical-Commercial Sector,WHEELCHAIR SERVICE,MEDEQUIP ASSISTIVE TECHNOLOGY LTD,38445319,"193,456.37"
Department of Health,NHS Rotherham CCG,31/10/2021,Service Charge,ESTATES AND FACILITIES,NHS PROPERTY SERVICES LTD,38380039,"41,187.04"
Department of Health,NHS Rotherham CCG,31/10/2021,Voids and Subsidies,PRC DELEGATED CO-COMMISSIONING,NHS PROPERTY SERVICES LTD,38408358,"31,260.44"
Department of Health,NHS Rotherham CCG,31/10/2021,Voids and Subsidies,PRC DELEGATED CO-COMMISSIONING,NHS PROPERTY SERVICES LTD,38408361,"27,009.99"
Department of Health,NHS Rotherham CCG,31/10/2021,Service Charge,ESTATES AND FACILITIES,NHS PROPERTY SERVICES LTD,38408377,"34,254.58"
Department of Health,NHS Rotherham CCG,31/10/2021,Clinical&Medical-Commercial Sector,ACUTE COMMISSIONING,PRACTICE PLUS GROUP HOSPITALS LTD,38445358,"52,114.16"
Department of Health,NHS Rotherham CCG,31/10/2021,Oth Travel Costs-Patient Transport,PATIENT TRANSPORT,PREMIER CARE DIRECT LTD,38342276,"47,297.42"
Department of Health,NHS Rotherham CCG,31/10/2021,Hcare Srv Rec Fdtn Trust-Contract Baseline,MENTAL HEALTH CONTRACTS,ROTHERHAM DONCASTER AND SOUTH HUMBER NHS FOUNDATION TRUST,38451928,"3,414,615.33"
Department of Health,NHS Rotherham CCG,31/10/2021,Clinical&Medical-Voluntary Sector,HOSPICES,ROTHERHAM HOSPICE TRUST (THE),38445347,"1,663,011.00"
Department of Health,NHS Rotherham CCG,31/10/2021,CLINICAL AND MEDICAL GOODS & SERVICES - HOSPITAL DISCHARGE PROGRAMME,FUNDED NURSING CARE,ROTHERHAM METROPOLITAN BOROUGH COUNCIL,38445421,"237,632.00"
Department of Health,NHS Rotherham CCG,31/10/2021,CLINICAL AND MEDICAL GOODS & SERVICES - HOSPITAL DISCHARGE PROGRAMME,FUNDED NURSING CARE,ROTHERHAM METROPOLITAN BOROUGH COUNCIL,38445424,"146,175.00"
Department of Health,NHS Rotherham CCG,31/10/2021,Cont Care- Children,CHC CHILDREN,ROTHERHAM METROPOLITAN BOROUGH COUNCIL,38474965,"34,035.00"
Department of Health,NHS Rotherham CCG,31/10/2021,Cont Care- Children,CHC CHILDREN,ROTHERHAM METROPOLITAN BOROUGH COUNCIL,38649455,"48,647.00"
Department of Health,NHS Rotherham CCG,31/10/2021,Clinical&Medical-Othe Public Sector,SAFEGUARDING,ROTHERHAM METROPOLITAN BOROUGH COUNCIL,38652983,"39,389.00"
Department of Health,NHS Rotherham CCG,31/10/2021,Hcare Srv Rec Fdtn Trust-Contract Baseline,ACUTE COMMISSIONING,ROTHERHAM NHS FOUNDATION TRUST,38451932,"17,000,000.00"
Department of Health,NHS Rotherham CCG,31/10/2021,Hcare Srv Rec Fdtn Trust-Contract Baseline,ACUTE COMMISSIONING,ROTHERHAM NHS FOUNDATION TRUST,38451933,"4,893,663.07"
Department of Health,NHS Rotherham CCG,31/10/2021,Hcare Srv Rec Fdtn Trust-Contract Baseline,ACUTE COMMISSIONING,SHEFFIELD CHILDRENS NHS FOUNDATION TRUST,38451929,"222,947.80"
Department of Health,NHS Rotherham CCG,31/10/2021,Hcare Srv Rec Fdtn Trust-Contract Baseline,MENTAL HEALTH CONTRACTS,SHEFFIELD HEALTH & SOCIAL CARE NHS FOUNDATION TRUST,38451930,"64,204.50"
Department of Health,NHS Rotherham CCG,31/10/2021,Hcare Srv Rec Fdtn Trust-Contract Baseline,ACUTE COMMISSIONING,SHEFFIELD TEACHING HOSPITALS NHS FOUNDATION TRUST,38451931,"2,496,159.30"
Department of Health,NHS Rotherham CCG,31/10/2021,Clinical&Medical-Commercial Sector,ACUTE COMMISSIONING,SPAMEDICA LTD,38445351,"75,253.50"
Department of Health,NHS Rotherham CCG,31/10/2021,Clinical&Medical-Commercial Sector,ACUTE COMMISSIONING,SPAMEDICA LTD,38445440,"72,175.00"
Department of Health,NHS Rotherham CCG,31/10/2021,Clinical&Medical-Commercial Sector,ACUTE COMMISSIONING,SPAMEDICA LTD,38445450,"-75,253.50"
Department of Health,NHS Rotherham CCG,31/10/2021,C&M-PMS Contract Value,PRC DELEGATED CO-COMMISSIONING,NHS ROTHERHAM CCG GP PRACTICE,38406707,"134,808.74"
Department of Health,NHS Rotherham CCG,31/10/2021,C&M-PMS Out of Hours Opt Outs,PRC DELEGATED CO-COMMISSIONING,NHS ROTHERHAM CCG GP PRACTICE,38406707,6.51
Department of Health,NHS Rotherham CCG,31/10/2021,C&M-PMS PCN DES Participation,PRC DELEGATED CO-COMMISSIONING,NHS ROTHERHAM CCG GP PRACTICE,38406707,"2,440.95"
Department of Health,NHS Rotherham CCG,31/10/2021,C&M-PMS PCO Other,PRC DELEGATED CO-COMMISSIONING,NHS ROTHERHAM CCG GP PRACTICE,38406707,988.20
Department of Health,NHS Rotherham CCG,31/10/2021,C&M-PMS Prem Healthcentre Rent,PRC DELEGATED CO-COMMISSIONING,NHS ROTHERHAM CCG GP PRACTICE,38406707,"1,011.86"
Department of Health,NHS Rotherham CCG,31/10/2021,C&M-PMS QOF Aspiration,PRC DELEGATED CO-COMMISSIONING,NHS ROTHERHAM CCG GP PRACTICE,38406707,"14,498.74"
Department of Health,NHS Rotherham CCG,31/10/2021,C&M-PMS Contract Value,PRC DELEGATED CO-COMMISSIONING,NHS ROTHERHAM CCG GP PRACTICE,38406710,-829.18
Department of Health,NHS Rotherham CCG,31/10/2021,C&M-PMS GP Statutory Levy,PRC DELEGATED CO-COMMISSIONING,NHS ROTHERHAM CCG GP PRACTICE,38406710,-929.25
Department of Health,NHS Rotherham CCG,31/10/2021,C&M-PMS Out of Hours Opt Outs,PRC DELEGATED CO-COMMISSIONING,NHS ROTHERHAM CCG GP PRACTICE,38406710,"-6,351.42"
Department of Health,NHS Rotherham CCG,31/10/2021,C&M-PMS Voluntary Levy,PRC DELEGATED CO-COMMISSIONING,NHS ROTHERHAM CCG GP PRACTICE,38406710,-136.66
Department of Health,NHS Rotherham CCG,31/10/2021,ME-PMS GP Pension EEs-PMS,PRC DELEGATED CO-COMMISSIONING,NHS ROTHERHAM CCG GP PRACTICE,38406710,"-14,593.65"
Department of Health,NHS Rotherham CCG,31/10/2021,ME-PMS GP Pension ERs-PMS,PRC DELEGATED CO-COMMISSIONING,NHS ROTHERHAM CCG GP PRACTICE,38406710,"-15,897.30"
Department of Health,NHS Rotherham CCG,31/10/2021,C&M-GMS DES Imp Online Patient Acc,GP FORWARD VIEW,SUBSTRAKT HEALTH LTD,38300354,"103,827.05"
Department of Health,NHS Rotherham CCG,31/10/2021,Clinical&Medical-Voluntary Sector,ACUTE CHILDRENS SERVICES,VOLUNTARY ACTION ROTHERHAM,38573857,"659,000.00"
Department of Health,NHS Rotherham CCG,31/10/2021,Clinical&Medical-Voluntary Sector,COUNSELLING SERVICES,VOLUNTARY ACTION ROTHERHAM,38630934,"200,000.00"
Department of Health,NHS Rotherham CCG,31/10/2021,Clinical&Medical-Voluntary Sector,COUNSELLING SERVICES,VOLUNTARY ACTION ROTHERHAM,38630943,"193,926.50"
Department of Health,NHS Rotherham CCG,31/10/2021,Hcare Srv Rec NHS Trust-Contract Baseline,AMBULANCE SERVICES,YORKSHIRE AMBULANCE SERVICE NHS TRUST,38451935,"1,152,145.10"
Department of Health,NHS Rotherham CCG,30/09/2021,Hcare Srv Rec NHS CCG-Non Contract,CONTINUING HEALTHCARE ASSESSMENT & SUPPORT,NHS DONCASTER CCG,38227546,"121,935.00"
Department of Health,NHS Rotherham CCG,30/09/2021,Voids and Subsidies,PRC DELEGATED CO-COMMISSIONING,NHS PROPERTY SERVICES LTD,38285935,"-31,700.76"
Department of Health,NHS Rotherham CCG,30/09/2021,Voids and Subsidies,PRC DELEGATED CO-COMMISSIONING,NHS PROPERTY SERVICES LTD,38123977,"27,009.99"
Department of Health,NHS Rotherham CCG,30/09/2021,Voids and Subsidies,PRC DELEGATED CO-COMMISSIONING,NHS PROPERTY SERVICES LTD,38286308,"31,700.76"
Department of Health,NHS Rotherham CCG,30/09/2021,Voids and Subsidies,PRC DELEGATED CO-COMMISSIONING,NHS PROPERTY SERVICES LTD,38123961,"27,009.99"
Department of Health,NHS Rotherham CCG,30/09/2021,Clinical&Medical-Commercial Sector,LEARNING DIFFICULTIES,ELYSIUM HEALTHCARE LTD,38292773,"78,826.80"
Department of Health,NHS Rotherham CCG,30/09/2021,Clinical&Medical-Commercial Sector,LEARNING DIFFICULTIES,MOORVILLE RESIDENTIAL,38292712,"27,654.90"
,,,,,,,"38,765,947.09"
